bitfinex/quotes_SOLUSD_20250823
["timestamp","ask_amount","ask_price","bid_price","bid_amount"]
[1755925525233,14.28559401,205.14,205.12,16.17790951]
[1755925525439,55.30559401,205.13,205.12,16.17790951]
[1755925526022,13.59559401,205.12,205.03,0.65]
[1755925526232,13.59559401,205.12,205.1,16.17790951]
[1755925526412,13.59559401,205.12,205.11,16.17790951]
[1755925526605,14.28559401,205.12,205.11,16.17790951]
[1755925526807,0.69,205.12,205.11,16.17790951]
[1755925527019,13.59559401,205.11,205.1,16.17790951]
[1755925527222,14.28559401,205.11,205.1,16.17790951]
[1755925527519,13.59559401,205.12,205.1,16.17790951]
[1755925527907,13.59559401,205.12,205.05,0.66]
[1755925528102,41.02,205.13,205.11,16.17790951]
[1755925528325,41.02,205.13,205.12,16.17790951]
[1755925528527,54.61559401,205.13,205.12,16.17790951]
[1755925528920,54.61559401,205.13,205.05,0.66]
[1755925529117,54.61559401,205.13,205.12,16.17790951]
[1755925529918,40.9,205.13,205.12,16.17790951]
[1755925530818,40.9,205.13,205.07,0.66]
[1755925531026,13.59559401,205.15,205.12,16.17790951]
[1755925531234,40.86,205.14,205.07,0.66]
[1755925531408,40.86,205.13,205.09,0.66]
[1755925531728,40.86,205.13,205.1,0.66]
[1755925532041,40.86,205.13,205.08,0.66]
[1755925532329,40.86,205.13,205.12,16.17790951]
[1755925532552,40.86,205.13,205.08,0.66]
[1755925532705,40.86,205.13,205.12,16.17790951]
[1755925533436,40.86,205.13,205.09,0.66]
[1755925533734,41.55,205.13,205.12,16.17790951]
[1755925534231,13.59559401,205.12,205.09,16.17790951]
[1755925534543,14.56991715,205.11,205.06,16.17790951]
[1755925534720,14.56991715,205.1,205.01,0.03]
[1755925535039,13.87991715,205.08,205.04,16.17790951]
[1755925535329,13.59559401,205.06,205.04,16.17790951]
[1755925535505,0.69,205.16,205.05,42.83790951]
[1755925535706,40.82,205.15,205.14,16.17790951]
[1755925535903,13.59559401,205.14,205.05,26.66]
[1755925536104,0.06,205.19,205.13,16.17790951]
[1755925536322,0.75,205.17,205.16,16.17790951]
[1755925536518,13.59559401,205.16,205.15,16.17790951]
[1755925536713,14.28559401,205.16,205.14,16.17790951]
[1755925536925,13.59559401,205.14,205.13,16.17790951]
[1755925537124,0.69,205.15,205.13,16.17790951]
[1755925537333,13.59559401,205.16,205.08,26.66]
[1755925537542,13.59559401,205.16,205.15,16.17790951]
[1755925537733,14.28559401,205.16,205.08,26.66]
[1755925537932,14.28559401,205.16,205.15,16.17790951]
[1755925538117,55.24559401,205.16,205.15,16.17790951]
[1755925538317,0.06,205.17,205.15,16.17790951]
[1755925538510,0.06,205.17,205.09,0.66]
[1755925538823,40.94,205.16,205.08,26.0]
[1755925539024,54.53559401,205.16,205.15,16.17790951]
[1755925539430,55.22559401,205.16,205.15,16.17790951]
[1755925539818,41.63,205.16,205.14,16.17790951]
[1755925540017,40.94,205.16,205.1,0.66]
[1755925540329,40.94,205.16,205.15,16.17790951]
[1755925540638,55.22559401,205.16,205.15,16.17790951]
[1755925540822,54.53559401,205.16,205.15,16.17790951]
[1755925541213,40.94,205.16,205.15,16.17790951]
[1755925542163,40.94,205.16,205.1,0.66]
[1755925542309,40.94,205.16,205.15,16.17790951]
[1755925542811,40.94,205.16,205.01,0.51778108]
[1755925542812,13.59559401,205.15,205.12,16.17790951]
[1755925543030,14.28559401,205.15,205.13,16.17790951]
[1755925543232,13.59559401,205.13,205.06,26.66]
[1755925543424,13.59559401,205.13,205.12,16.17790951]
[1755925543623,14.28559401,205.13,205.01,0.03]
[1755925543830,14.28559401,205.13,205.1,16.17790951]
[1755925544020,13.59559401,205.11,205.07,16.17790951]
[1755925544219,13.59559401,205.09,205.07,16.17790951]
[1755925544438,14.28559401,205.08,205.07,16.17790951]
[1755925545024,13.59559401,205.07,205.05,16.17790951]
[1755925545342,41.61,205.06,205.04,0.03]
[1755925546045,14.28559401,205.05,205.04,0.03]
[1755925546735,14.28559401,205.05,205.04,16.20790951]
[1755925547569,14.42775558,205.05,205.04,0.03]
[1755925547846,0.28432314,205.04,205.01,0.03]
[1755925548222,13.59559401,205.02,205.01,0.03]
[1755925548421,55.16559401,205.02,205.01,0.03]
[1755925550846,55.44991715,205.02,205.01,0.03]
[1755925551647,54.47559401,205.02,205.01,0.03]
[1755925551821,13.59559401,205.05,205.01,16.20790951]
[1755925552024,13.59559401,205.03,205.01,0.03]
[1755925552328,13.59559401,205.03,205.02,16.17790951]
[1755925553055,13.59559401,205.03,205.01,0.03]
[1755925553261,13.59559401,205.03,205.02,16.17790951]
[1755925554223,0.69,205.1,205.02,16.83790951]
[1755925554424,54.31559401,205.09,205.02,0.66]
[1755925554745,54.31559401,205.09,205.08,16.17790951]
[1755925554921,0.06,205.17,205.08,16.17790951]
[1755925554922,0.69,205.16,205.08,16.83790951]
[1755925555115,0.06,205.17,205.15,16.17790951]
[1755925555320,40.74,205.16,205.09,0.66]
[1755925555519,0.06,205.17,205.15,16.17790951]
[1755925555719,40.74,205.16,205.12,26.0]
[1755925555932,40.74,205.16,205.13,0.66]
[1755925556342,40.74,205.16,205.14,0.66]
[1755925556540,40.74,205.16,205.15,0.66]
[1755925556744,40.74,205.16,205.15,16.83790951]
[1755925556935,40.74,205.16,205.08,26.0]
[1755925557124,40.74,205.16,205.15,16.17790951]
[1755925557332,0.06,205.17,205.15,16.88790951]
[1755925557532,0.06,205.17,205.16,16.88790951]
[1755925559533,0.06,205.17,205.16,0.71]
[1755925559735,0.06,205.17,205.16,42.88790951]
[1755925560833,0.06,205.17,205.16,26.71]
[1755925561027,0.06,205.17,205.16,42.88790951]
[1755925562768,0.06,205.17,205.16,42.17790951]
[1755925563539,0.06,205.17,205.16,26.71]
[1755925563743,0.06,205.17,205.16,42.17790951]
[1755925564557,0.06,205.18,205.16,16.88790951]
[1755925564762,16.66664211,205.27,205.21,26.0]
[1755925565071,40.68,205.32,205.26,42.17790951]
[1755925565282,40.68,205.32,205.3,16.17790951]
[1755925565576,24.35452392,205.45,205.33,26.0]
[1755925565577,0.69,205.45,205.33,26.0]
[1755925565742,40.68,205.44,205.42,16.17790951]
[1755925565946,0.69,205.43,205.42,16.17790951]
[1755925566164,0.69,205.43,205.32,14.848815]
[1755925566165,0.69,205.43,205.32,14.618815]
[1755925566364,13.59559401,205.42,205.38,16.17790951]
[1755925566581,0.69,205.41,205.31,26.0]
[1755925566778,0.69,205.41,205.36,16.17790951]
[1755925566973,13.59559401,205.4,205.35,16.17790951]
[1755925567174,0.69,205.44,205.37,16.17790951]
[1755925567373,57.54790951,205.43,205.33,26.0]
[1755925567548,14.28559401,205.42,205.37,16.17790951]
[1755925567751,40.68,205.43,205.38,16.17790951]
[1755925567950,13.59559401,205.4,205.34,16.17790951]
[1755925568149,0.69,205.39,205.33,16.17790951]
[1755925568442,40.7,205.38,205.34,16.17790951]
[1755925568646,0.69,205.42,205.31,0.23]
[1755925568845,40.7,205.41,205.37,16.17790951]
[1755925569058,40.7,205.41,205.38,16.17790951]
[1755925569279,41.39,205.41,205.39,16.17790951]
[1755925569455,40.7,205.41,205.39,16.17790951]
[1755925569857,40.7,205.41,205.4,16.17790951]
[1755925570069,48.91573587,205.47,205.4,16.17790951]
[1755925570381,40.66,205.46,205.41,16.17790951]
[1755925570760,0.69,205.45,205.36,26.0]
[1755925571092,40.66,205.44,205.42,16.17790951]
[1755925571252,40.66,205.44,205.4,26.0]
[1755925571470,40.66,205.44,205.43,16.17790951]
[1755925572196,40.66,205.44,205.43,16.40790951]
[1755925572665,40.66,205.44,205.4,26.0]
[1755925572866,40.66,205.44,205.43,16.17790951]
[1755925573160,0.18014186,205.47,205.4,26.0]
[1755925573368,40.68,205.46,205.42,16.17790951]
[1755925573576,41.37,205.46,205.42,16.17790951]
[1755925573766,41.37,205.46,205.4,26.0]
[1755925573972,41.37,205.46,205.36,0.23]
[1755925574164,41.37,205.46,205.4,16.17790951]
[1755925574369,16.17790951,205.45,205.35,14.61739]
[1755925574564,40.68,205.46,205.36,16.17790951]
[1755925574565,16.17790951,205.43,205.36,16.17790951]
[1755925575184,0.69,205.44,205.32,14.618815]
[1755925575392,40.68,205.43,205.38,16.17790951]
[1755925575562,41.37,205.43,205.38,16.17790951]
[1755925575761,40.68,205.43,205.38,16.17790951]
[1755925576082,40.68,205.43,205.39,16.17790951]
[1755925576259,16.86790951,205.46,205.39,16.17790951]
[1755925576581,40.64,205.45,205.35,26.0]
[1755925576797,0.18014186,205.47,205.36,0.23]
[1755925576960,0.18014186,205.47,205.44,16.17790951]
[1755925576961,40.82014186,205.47,205.44,16.17790951]
[1755925577377,40.82014186,205.47,205.41,26.0]
[1755925577585,57.68805137,205.47,205.41,42.17790951]
[1755925577968,57.68805137,205.47,205.4,16.17790951]
[1755925578184,41.51014186,205.47,205.42,16.17790951]
[1755925578371,41.51014186,205.47,205.44,16.17790951]
[1755925578775,0.69,205.46,205.4,16.17790951]
[1755925578992,16.17790951,205.45,205.39,26.0]
[1755925579182,0.69,205.46,205.39,42.17790951]
[1755925579183,16.86790951,205.46,205.39,42.17790951]
[1755925579372,0.69,205.45,205.34,14.848102]
[1755925579566,16.86790951,205.45,205.32,26.23]
[1755925579878,40.64,205.44,205.39,16.17790951]
[1755925580187,0.69,205.43,205.39,16.17790951]
[1755925580391,0.69,205.43,205.4,16.17790951]
[1755925580597,0.69,205.43,205.36,26.0]
[1755925580888,40.68,205.42,205.36,26.23]
[1755925581059,40.68,205.42,205.41,16.17790951]
[1755925581884,40.68,205.42,205.41,42.17790951]
[1755925582089,0.18014186,205.47,205.41,42.17790951]
[1755925582090,40.66,205.46,205.41,42.17790951]
[1755925582269,40.66,205.46,205.45,16.17790951]
[1755925582567,57.52790951,205.46,205.33,0.23]
[1755925582774,16.86790951,205.45,205.39,16.17790951]
[1755925582969,40.66,205.46,205.39,16.17790951]
[1755925582970,0.69,205.44,205.39,16.17790951]
[1755925583161,40.66,205.46,205.4,16.17790951]
[1755925583361,0.69,205.45,205.4,16.17790951]
[1755925583567,40.64,205.44,205.41,16.17790951]
[1755925583963,0.69,205.43,205.38,16.17790951]
[1755925584165,41.33,205.42,205.39,16.17790951]
[1755925584372,41.33,205.42,205.33,14.848815]
[1755925584576,41.33,205.42,205.4,16.17790951]
[1755925584966,0.69,205.45,205.4,16.17790951]
[1755925585168,0.69,205.45,205.36,26.0]
[1755925585169,0.69,205.45,205.43,16.17790951]
[1755925585372,0.18014186,205.47,205.36,26.0]
[1755925585373,40.66,205.44,205.37,0.23]
[1755925585582,40.66,205.44,205.37,26.23]
[1755925585774,40.66,205.44,205.38,0.23]
[1755925586593,40.66,205.44,205.43,42.17790951]
[1755925586784,40.66,205.44,205.43,16.17790951]
[1755925586963,40.66,205.44,205.4,0.23]
[1755925586964,40.66,205.44,205.42,26.0]
[1755925587166,40.66,205.44,205.43,16.17790951]
[1755925588165,0.18014186,205.47,205.43,16.17790951]
[1755925588396,0.18014186,205.47,205.46,16.17790951]
[1755925589573,0.18014186,205.47,205.46,16.40790951]
[1755925589881,0.06,205.48,205.46,16.40790951]
[1755925590079,0.06,205.48,205.47,16.40790951]
[1755925590480,0.06,205.49,205.47,16.40790951]
[1755925590802,0.06,205.5,205.48,16.40790951]
[1755925590973,0.06,205.5,205.49,16.40790951]
[1755925591592,0.06,205.5,205.49,16.17790951]
[1755925592479,0.06,205.5,205.49,26.0]
[1755925592812,0.06,205.5,205.49,45.5236304]
[1755925592982,0.06,205.5,205.49,3.57572089]
[1755925593175,0.06,205.5,205.49,19.7536304]
[1755925593369,0.72,205.57,205.49,19.7536304]
[1755925593701,0.72,205.57,205.56,16.17790951]
[1755925594407,0.06,205.5,205.49,0.23]
[1755925594610,0.06,205.5,205.49,19.75984643]
[1755925594785,0.06,205.5,205.49,3.58193692]
[1755925594988,0.06,205.5,205.49,19.75984643]
[1755925595406,1.0,205.58,205.52,26.0]
[1755925595610,1.0,205.58,205.57,16.17790951]
[1755925596113,1.0,205.58,205.5,26.23]
[1755925596407,1.0,205.58,205.56,16.17790951]
[1755925596408,0.72,205.57,205.56,16.17790951]
[1755925596709,0.72,205.57,205.55,16.17790951]
[1755925597008,1.0,205.58,205.56,16.17790951]
[1755925597505,1.0,205.58,205.55,26.0]
[1755925597506,0.72,205.57,205.55,26.0]
[1755925597707,0.72,205.57,205.56,16.17790951]
[1755925598378,0.72,205.57,205.56,3.36371024]
[1755925598576,0.72,205.57,205.56,19.54161975]
[1755925598792,0.72,205.57,205.56,3.36371024]
[1755925599023,1.0,205.58,205.56,19.54161975]
[1755925599204,1.0,205.58,205.57,16.17790951]
[1755925599506,1.0,205.58,205.57,19.54466286]
[1755925599687,1.72,205.58,205.57,19.54466286]
[1755925599891,1.0,205.58,205.57,19.54466286]
[1755925600397,1.72,205.58,205.57,16.17790951]
[1755925600597,1.72,205.58,205.57,19.54754613]
[1755925601904,1.0,205.58,205.57,19.54754613]
[1755925602290,1.72,205.58,205.57,3.36963662]
[1755925602486,1.0,205.58,205.57,16.17790951]
[1755925602688,1.72,205.58,205.57,16.17790951]
[1755925603214,1.0,205.58,205.57,16.17790951]
[1755925606485,1.0,205.58,205.56,26.0]
[1755925606691,1.0,205.58,205.57,16.17790951]
[1755925608191,1.72,205.58,205.5,14.836715]
[1755925608395,1.0,205.58,205.51,3.38097974]
[1755925608608,1.0,205.58,205.57,16.17790951]
[1755925609118,1.0,205.58,205.57,19.32983832]
[1755925609288,1.0,205.58,205.57,16.17790951]
[1755925609490,1.72,205.58,205.57,16.17790951]
[1755925609690,1.72,205.58,205.56,16.17790951]
[1755925609913,0.72,205.57,205.56,16.17790951]
[1755925610100,1.0,205.58,205.56,16.17790951]
[1755925610292,1.0,205.58,205.57,16.17790951]
[1755925610918,1.0,205.58,205.57,19.33360194]
[1755925611219,1.0,205.58,205.57,3.15569243]
[1755925611392,1.0,205.58,205.57,16.17790951]
[1755925612504,1.0,205.58,205.55,26.0]
[1755925612705,0.72,205.57,205.53,26.0]
[1755925613011,0.72,205.57,205.56,16.17790951]
[1755925613208,1.0,205.58,205.56,16.17790951]
[1755925613430,1.0,205.58,205.57,16.17790951]
[1755925614207,1.72,205.58,205.57,16.17790951]
[1755925614892,1.72,205.58,205.5,26.0]
[1755925615093,1.72,205.58,205.57,16.17790951]
[1755925615723,1.72,205.58,205.51,26.0]
[1755925615922,1.72,205.58,205.54,26.0]
[1755925616135,1.72,205.58,205.57,16.17790951]
[1755925616305,1.72,205.58,205.51,0.23]
[1755925616306,1.0,205.58,205.51,0.23]
[1755925616507,1.0,205.58,205.57,16.17790951]
[1755925617612,1.0,205.58,205.53,0.23]
[1755925617825,1.0,205.58,205.57,16.17790951]
[1755925618431,1.71,205.58,205.55,26.0]
[1755925618617,1.71,205.58,205.48,4.18241974]
[1755925618618,1.0,205.58,205.56,16.17790951]
[1755925619210,0.71,205.57,205.56,16.17790951]
[1755925619437,0.71,205.57,205.49,14.606715]
[1755925619727,0.71,205.57,205.47,0.03]
[1755925619728,0.71,205.57,205.52,16.17790951]
[1755925619931,0.71,205.57,205.47,0.03]
[1755925619932,16.88790951,205.57,205.5,16.17790951]
[1755925620135,14.30559401,205.56,205.51,16.17790951]
[1755925620437,0.71,205.55,205.47,0.03]
[1755925620636,0.71,205.55,205.5,16.17790951]
[1755925620939,41.29,205.55,205.47,0.03]
[1755925621116,0.71,205.54,205.5,16.17790951]
[1755925621308,29.77350352,205.53,205.47,0.03]
[1755925621516,29.77350352,205.48,205.45,0.03]
[1755925621825,40.58,205.47,205.45,0.03]
[1755925622023,41.29,205.47,205.45,0.03]
[1755925622336,30.48350352,205.46,205.33,4.79951541]
[1755925622541,16.17790951,205.41,205.33,4.79951541]
[1755925622740,0.71,205.4,205.36,16.17790951]
[1755925622921,0.71,205.43,205.39,16.17790951]
[1755925623107,0.71,205.43,205.28,2.54366316]
[1755925623108,0.71,205.43,205.42,16.17790951]
[1755925623432,40.58,205.44,205.42,16.17790951]
[1755925623635,41.29,205.44,205.43,16.17790951]
[1755925624246,0.71,205.48,205.43,16.17790951]
[1755925624419,40.6,205.49,205.46,16.17790951]
[1755925624629,11.95905042,205.57,205.48,16.17790951]
[1755925624630,7.09449783,205.57,205.48,16.17790951]
[1755925624810,7.09449783,205.57,205.53,16.17790951]
[1755925625011,16.17790951,205.54,205.38,0.32]
[1755925625235,29.77350352,205.46,205.39,16.17790951]
[1755925625442,29.77350352,205.46,205.32,0.32]
[1755925625443,0.71,205.45,205.32,0.32]
[1755925625724,16.17790951,205.43,205.36,16.17790951]
[1755925625916,0.71,205.43,205.33,0.32]
[1755925626115,0.71,205.43,205.42,16.17790951]
[1755925626449,40.66,205.45,205.42,16.17790951]
[1755925626946,13.59559401,205.56,205.44,16.17790951]
[1755925627115,0.71,205.48,205.44,16.17790951]
[1755925627323,4.86494465,205.56,205.37,26.32]
[1755925627324,0.71,205.47,205.45,16.17790951]
[1755925627632,0.06,205.48,205.46,16.17790951]
[1755925627833,0.06,205.48,205.47,16.17790951]
[1755925628841,0.06,205.48,205.42,0.32]
[1755925628842,0.06,205.48,205.46,26.0]
[1755925629060,0.06,205.48,205.47,16.17790951]
[1755925630136,0.06,205.48,205.47,16.49790951]
[1755925630317,0.06,205.48,205.47,19.66879957]
[1755925630707,0.06,205.51,205.5,26.0]
[1755925630933,0.06,205.51,205.5,16.17790951]
[1755925631313,0.06,205.51,205.48,0.32]
[1755925631513,0.06,205.51,205.5,16.17790951]
[1755925632616,0.06,205.51,205.46,26.0]
[1755925632833,0.06,205.51,205.5,16.17790951]
[1755925633931,0.06,205.51,205.49,26.0]
[1755925634145,0.06,205.51,205.5,16.17790951]
[1755925634575,0.77,205.61,205.53,26.0]
[1755925634859,0.77,205.61,205.57,16.17790951]
[1755925635032,0.77,205.61,205.53,26.0]
[1755925635234,0.77,205.61,205.53,0.32]
[1755925635440,0.77,205.61,205.57,16.17790951]
[1755925636617,0.77,205.61,205.56,26.0]
[1755925636820,0.77,205.61,205.53,0.32]
[1755925636821,0.77,205.61,205.57,16.17790951]
[1755925637640,0.06,205.61,205.57,16.17790951]
[1755925637846,0.06,205.61,205.53,26.0]
[1755925638053,0.06,205.61,205.57,16.17790951]
[1755925639445,1.71,205.58,205.53,26.0]
[1755925639629,1.71,205.58,205.57,16.17790951]
[1755925639630,1.0,205.58,205.57,16.17790951]
[1755925640442,1.0,205.58,205.52,1.947372]
[1755925640643,1.0,205.58,205.57,16.17790951]
[1755925641672,1.0,205.58,205.52,0.32]
[1755925641848,1.0,205.58,205.57,16.17790951]
[1755925642043,1.0,205.58,205.53,26.0]
[1755925642379,1.0,205.58,205.57,42.17790951]
[1755925642551,1.0,205.58,205.57,26.0]
[1755925642739,1.71,205.58,205.57,26.0]
[1755925642940,1.71,205.58,205.49,40.74]
[1755925643163,1.71,205.58,205.57,16.17790951]
[1755925644253,1.71,205.58,205.48,14.607426]
[1755925644454,0.71,205.57,205.51,26.0]
[1755925644650,0.71,205.57,205.56,16.17790951]
[1755925645261,0.71,205.57,205.51,0.03]
[1755925645461,0.71,205.57,205.56,16.17790951]
[1755925645972,0.71,205.57,205.51,0.03]
[1755925646349,0.71,205.57,205.54,16.17790951]
[1755925646678,0.71,205.56,205.54,16.17790951]
[1755925646865,1.06,205.58,205.51,0.03]
[1755925647072,1.06,205.58,205.53,16.17790951]
[1755925647269,1.06,205.58,205.51,0.03]
[1755925647462,0.7,205.57,205.53,16.17790951]
[1755925648985,0.7,205.57,205.51,0.03]
[1755925649289,0.7,205.57,205.52,16.17790951]
[1755925649465,13.59559401,205.52,205.48,0.03]
[1755925649647,13.59559401,205.48,205.36,0.03]
[1755925649847,0.28432314,205.56,205.44,16.17790951]
[1755925649848,0.7,205.47,205.44,16.17790951]
[1755925650069,29.77350352,205.45,205.39,0.03]
[1755925650301,29.77350352,205.45,205.33,2.54275837]
[1755925650302,13.59559401,205.39,205.33,2.54275837]
[1755925650587,13.59559401,205.39,205.26,0.03]
[1755925650588,0.28432314,205.32,205.26,0.03]
[1755925650891,0.28432314,205.26,205.15,2.542758]
[1755925651051,13.73775558,205.26,205.15,2.542758]
[1755925651388,23.59559401,205.27,205.08,16.17790951]
[1755925651389,34.9313585,205.19,205.08,16.17790951]
[1755925651680,75.8513585,205.19,205.04,0.7]
[1755925651881,75.8513585,205.19,205.07,16.17790951]
[1755925652058,75.8513585,205.19,205.04,0.03]
[1755925652059,13.87991715,205.19,205.04,0.03]
[1755925652262,70.69350352,205.19,205.13,0.03]
[1755925652455,40.92,205.19,205.16,16.17790951]
[1755925652653,40.92,205.19,205.17,16.17790951]
[1755925652955,40.96,205.25,205.18,0.87]
[1755925653149,13.59559401,205.24,205.18,0.2]
[1755925653466,29.77350352,205.19,205.18,0.2]
[1755925653656,13.87991715,205.19,205.18,0.2]
[1755925653857,40.96,205.25,205.18,0.2]
[1755925653858,0.28432314,205.22,205.18,0.2]
[1755925654092,13.59559401,205.2,205.18,0.2]
[1755925654451,0.28432314,205.22,205.18,0.2]
[1755925654651,16.17790951,205.2,205.18,0.2]
[1755925655172,0.28432314,205.22,205.18,0.2]
[1755925655477,30.05782666,205.19,205.18,0.2]
[1755925655676,13.59559401,205.15,205.13,0.03]
[1755925655878,71.07782666,205.14,205.13,0.03]
[1755925656690,39.59559401,205.11,205.1,0.2]
[1755925656855,56.05782666,205.11,205.1,0.2]
[1755925657056,13.87991715,205.1,205.01,0.03]
[1755925657275,55.67,205.14,205.01,0.03]
[1755925657276,30.05782666,205.05,205.01,0.03]
[1755925657472,54.99991715,205.05,205.01,0.03]
[1755925657887,71.17782666,205.05,205.01,0.03]
[1755925658258,54.99991715,205.05,205.01,0.03]
[1755925658474,13.59559401,205.05,205.02,24.13597913]
[1755925658679,41.16,205.05,205.03,24.13597913]
[1755925658987,41.16,205.05,205.04,24.83597913]
[1755925660259,41.16,205.05,205.04,0.03]
[1755925660693,54.75559401,205.05,205.04,0.03]
[1755925662188,24.13597913,205.13,205.04,24.83597913]
[1755925662390,35.06,205.29,205.04,24.83597913]
[1755925662391,54.83559401,205.12,205.07,24.13597913]
[1755925662602,54.83559401,205.12,205.08,0.67]
[1755925662903,24.13597913,205.19,205.11,24.13597913]
[1755925663065,41.26,205.18,205.13,24.13597913]
[1755925663266,41.26,205.18,205.11,0.67]
[1755925663480,41.26,205.18,205.08,0.67]
[1755925663481,24.13597913,205.16,205.08,0.67]
[1755925663690,13.59559401,205.15,205.09,24.13597913]
[1755925663861,13.59559401,205.15,205.1,24.13597913]
[1755925664066,13.59559401,205.15,205.06,26.0]
[1755925664067,13.59559401,205.14,205.08,24.13597913]
[1755925664262,41.26,205.13,205.09,24.13597913]
[1755925664964,0.14216157,205.18,205.12,24.13597913]
[1755925665166,13.59559401,205.21,205.16,24.13597913]
[1755925665395,13.59559401,205.19,205.18,24.13597913]
[1755925666099,24.13597913,205.25,205.18,24.13597913]
[1755925666100,41.48,205.25,205.18,24.80597913]
[1755925666270,41.48,205.25,205.19,0.67]
[1755925666613,13.59559401,205.24,205.2,24.13597913]
[1755925667070,13.59559401,205.24,205.2,24.80597913]
[1755925667269,13.59559401,205.24,205.22,24.13597913]
[1755925668072,41.48,205.25,205.23,24.13597913]
[1755925668789,41.48,205.25,205.22,24.80597913]
[1755925669609,41.48,205.25,205.22,0.67]
[1755925669810,41.48,205.25,205.22,24.80597913]
[1755925670266,13.59559401,205.24,205.18,26.0]
[1755925670473,13.59559401,205.24,205.19,0.67]
[1755925670675,13.59559401,205.24,205.21,24.13597913]
[1755925670901,13.59559401,205.24,205.2,24.13597913]
[1755925671495,13.59559401,205.24,205.21,24.80597913]
[1755925672285,13.59559401,205.24,205.2,24.13597913]
[1755925672486,13.65559401,205.26,205.23,24.13597913]
[1755925672696,13.59559401,205.24,205.23,24.13597913]
[1755925673185,13.59559401,205.24,205.22,24.13597913]
[1755925673894,13.59559401,205.24,205.21,24.13597913]
[1755925674127,13.59559401,205.24,205.18,26.67]
[1755925674128,13.59559401,205.24,205.18,26.0]
[1755925674299,0.06,205.26,205.22,0.67]
[1755925674300,41.34,205.23,205.22,0.67]
[1755925675594,41.34,205.23,205.22,24.80597913]
[1755925678112,41.24,205.24,205.22,24.80597913]
[1755925678279,41.24,205.24,205.23,24.82597913]
[1755925679212,41.24,205.24,205.2,0.69]
[1755925679515,24.13597913,205.21,205.17,0.69]
[1755925679714,24.13597913,205.21,205.15,14.631648]
[1755925679715,41.2,205.2,205.15,14.631648]
[1755925679896,41.2,205.2,205.13,24.85597913]
[1755925679897,13.59559401,205.19,205.13,24.85597913]
[1755925680097,41.2,205.2,205.16,24.13597913]
[1755925680294,41.2,205.2,205.18,16.17095541]
[1755925680504,41.2,205.2,205.19,0.69]
[1755925681021,41.2,205.2,205.13,0.03]
[1755925681188,41.22,205.2,205.19,16.86095541]
[1755925681387,41.22,205.2,205.19,0.69]
[1755925681722,13.59559401,205.19,205.14,16.17095541]
[1755925681883,13.59559401,205.19,205.13,0.03]
[1755925682082,29.76654942,205.17,205.13,0.03]
[1755925682282,26.0,205.24,205.13,16.20095541]
[1755925682510,13.59559401,205.22,205.16,16.17095541]
[1755925682808,13.59559401,205.22,205.19,16.17095541]
[1755925683011,26.0,205.28,205.13,0.03]
[1755925683012,13.65559401,205.26,205.21,16.17095541]
[1755925683182,13.59559401,205.24,205.21,16.17095541]
[1755925683592,13.59559401,205.24,205.2,0.69]
[1755925684015,13.59559401,205.24,205.21,16.17095541]
[1755925684314,13.59559401,205.21,205.13,0.03]
[1755925684519,13.59559401,205.17,205.13,0.03]
[1755925684688,41.34,205.16,205.13,0.03]
[1755925684884,57.51095541,205.16,205.13,0.03]
[1755925685409,13.59559401,205.15,205.13,0.03]
[1755925685590,29.76654942,205.15,205.13,0.03]
[1755925685997,29.76654942,205.14,205.13,0.03]
[1755925686202,13.59559401,205.14,205.13,0.03]